Cogmind - Beta 10.2 @@@ ROGUE MODE // 2020.11.07 @ 19:28:00 Player: CBR2052 Result: Destroyed by D-53 Grenadier with Mini Grenade Launcher Performance ------------- Evolutions (0) 0 Regions Visited (2) 400 Robots Destroyed (3) 15 Value Destroyed (121) 121 Prototype IDs (2) 40 Alien Tech Used (0) 0 Bonus (0) 0 TOTAL SCORE: 576 Bonus ------- None Cogmind --------- Core Integrity 0/250 Matter 274/300 Energy 125/125 System Corruption 4% Temperature Cool (0) Movement Hovering (90) Location -10/Mines Parts ------- > --- POWER (1) -------- Light Ion Engine > --- PROPULSION (2) --- Aluminum Leg Combat Airjet > --- UTILITY (2) ------ Small Storage Unit Seismic Analyzer > --- WEAPON (2) ------- Mini Grenade Launcher > --- INVENTORY (6) ---- Small Laser Peak State ------------ > --- POWER ------------ Light Ion Engine > --- PROPULSION ------- Aluminum Leg Combat Airjet > --- UTILITY ---------- Small Storage Unit Seismic Analyzer > --- WEAPON ----------- Particle Cannon Mini Grenade Launcher > --- INVENTORY -------- Small Laser [Rating: 13] Favorites ----------- Power Ion Engine Engine Ion Engine Propulsion Aluminum Leg Leg Aluminum Leg Hover Unit Combat Airjet Utility Small Storage Unit Device Terrain Scanner Storage Small Storage Unit Processor Seismic Analyzer Weapon Shotgun Energy Gun EM Pulse Gun Energy Cannon Particle Cannon Ballistic Gun Shotgun Launcher Mini Grenade Launcher Build | -11 -10 -10 ------- Run | Scr Mat Min Slots Evolved . | . . . Power . | . . . Propulsion . | . . . Utility . | . . . Weapon . | . . . Parts Attached 19 | 6 4 9 Power 2 | 1 . 1 Engine 2 | 1 . 1 Core . | . . . Reactor . | . . . Propulsion 5 | 2 1 2 Treads . | . . . Leg 3 | 2 1 . Wheel . | . . . Hover 2 | . . 2 Flight . | . . . Utility 3 | 1 1 1 Device 1 | . 1 . Storage 1 | 1 . . Processor 1 | . . 1 Hackware . | . . . Protection . | . . . Artifact . | . . . Weapon 9 | 2 2 5 Energy Gun 1 | 1 . . Energy Cannon 2 | . . 2 Ballistic Gun 5 | 1 2 2 Ballistic Cannon . | . . . Launcher 1 | . . 1 Special Weapon . | . . . Impact Weapon . | . . . Slashing Weapon . | . . . Piercing Weapon . | . . . Special Melee Weapon . | . . . Unidentified Prototypes . | . . . Parts Lost 7 | . . 7 Power 1 | . . 1 Propulsion 1 | . . 1 Utility 1 | . . 1 Weapon 4 | . . 4 Highest Loss Streak 5 | . . 5 Average Slot Usage (%) 86 | . 95 79 Engine 11 | . 14 9 Leg 23 | . 28 19 Hover 1 | . . 2 Device 10 | . 10 9 Storage 14 | . 14 14 Processor 1 | . . 1 Energy Gun 1 | . 2 . Energy Cannon 4 | . . 8 Ballistic Gun 17 | . 25 11 Launcher 1 | . . 1 Naked Turns . | . . . Heaviest Build 17 | 13 16 17 Greatest Support 22 | 20 20 22 Greatest Overweight (x) 2 | 2 . 1 Average Overweight (x) . | 1 . . Largest Inventory Capacity 6 | 6 6 6 Average Capacity 5 | 5 6 6 Most Carried 6 | 6 6 6 Average Carried 4 | 3 5 4 Final Capacity 6 | 6 6 6 Final Carried 6 | 2 6 1 Class Distribution -------------------- 100% | Mutant Dominant Class ---------------- Mutant | -10/Materials Mutant | -10/Mines Resources | -11 -10 -10 ----------- Run | Scr Mat Min Matter Collected 442 | 255 55 132 Remotely . | . . . Salvage Created 151 | . 77 74 Parts 8 | . 6 2 Haulers Intercepted . | . . . Recyclers Shooed . | . . . Parts Field Recycled . | . . . Retrieved Matter . | . . . Parts Self-Destructed . | . . . Prevented . | . . . Kills | -11 -10 -10 ------- Run | Scr Mat Min Combat Hostiles Destroyed 7 | . 2 5 Guns 4 | . 2 2 Cannons 3 | . . 3 Classes Destroyed 3 | . 1 2 Grunt 2 | . 2 . Demolisher 1 | . . 1 Assembled 4 | . . 4 Best Kill Streak 2 | . 2 2 Combat Bots Only 2 | . 2 2 Max Kills in Single Turn 1 | . 1 1 Gunslinging . | . . . Exploded . | . . . Melee . | . . . Uniques/NPCs Destroyed . | . . . Combat | -11 -10 -10 -------- Run | Scr Mat Min Damage Taken 1033 | . 57 976 Core 256 | . 12 244 Absorbed by Shields . | . . . Core Remaining (%) 100 | 100 . . Volleys Fired 40 | . 5 35 Largest 2 | . 2 2 Hottest 91 | . 46 91 Shots Fired 54 | . 10 44 Gun 32 | . 10 22 Cannon 22 | . . 22 Launcher . | . . . Special . | . . . Kinetic 32 | . 10 22 Thermal 22 | . . 22 Explosive . | . . . Electromagnetic . | . . . Robot Hit Streak 5 | . 4 5 Robot Miss Streak 4 | . 3 4 Penetration Max . | . . . Secondary Targets 1 | . . 1 Max Gunslinging Chain 1 | . . 1 Shots Hit Robots 40 | . 8 32 Core Hits 13 | . 4 9 Critical Hits 1 | . . 1 Critical Kills . | . . . Critical Parts Destroyed 1 | . . 1 Melee Attacks . | . . . Impact . | . . . Slashing . | . . . Piercing . | . . . Sneak Attacks . | . . . Combat Hostiles . | . . . Follow-up Attacks . | . . . Damage Inflicted 578 | . 99 479 Guns 248 | . 99 149 Cannons 330 | . . 330 Explosions . | . . . Melee . | . . . Ramming . | . . . Kinetic 248 | . 99 149 Thermal 330 | . . 330 Explosive . | . . . Electromagnetic . | . . . Impact . | . . . Slashing . | . . . Piercing . | . . . Highest Corruption 4 | . . 4 Average Corruption 2 | . . 2 Corruption Purged . | . . . Overload Shots . | . . . Overflow Damage 14 | . . 14 Projectiles 14 | . . 14 Explosions . | . . . Melee . | . . . Knockbacks . | . . . Impact . | . . . Kinetic . | . . . Secondary . | . . . Self-Inflicted Damage . | . . . Shots . | . . . Rammed . | . . . Targets Rammed . | . . . Kicked . | . . . Crushed . | . . . Highest Temperature 144 | . 1 144 Average Temperature 47 | . 1 50 Received Heat Transfer 70 | . 30 40 Siege Activations . | . . . Robots Corrupted . | . . . Combat Hostiles . | . . . Parts Fried . | . . . Impact Corruptions . | . . . Robots Melted . | . . . Combat Hostiles . | . . . Parts Melted . | . . . Heat Transferred 592 | . . 592 Parts Sabotaged . | . . . Parts Stolen . | . . . Parts Stripped . | . . . Power Chain Reactions . | . . . Missiles Intercepted . | . . . Alert | -11 -10 -10 ------- Run | Scr Mat Min Peak Influence 70 | . 70 50 Initial 27 | . . 27 Average 24 | . 28 30 Maximum Alert Level . | . . . Low Security (%) 100 | 100 100 100 Level 1 . | . . . Level 2 . | . . . Level 3 . | . . . Level 4 . | . . . Level 5 . | . . . High Security . | . . . Max Security . | . . . Squads Dispatched 2 | . 2 . Investigation 1 | . 1 . Extermination . | . . . Reinforcement 1 | . 1 . Assault . | . . . Garrison . | . . . Intercept . | . . . Construction Impeded . | . . . Haulers Reinforced . | . . . Stealth | -11 -10 -10 --------- Run | Scr Mat Min Distress Signals 1 | . . 1 Communications Jammed . | . . . Distress Signals . | . . . Times Spotted 13 | . 3 10 Peak Tracking Total 4 | . 2 4 Tactical Retreats 1 | . . 1 Traps | -11 -10 -10 ------- Run | Scr Mat Min Traps Triggered 1 | . 1 . Indirectly . | . . . Trap Hack Attempts . | . . . Triggered . | . . . Disarmed . | . . . Reprogrammed . | . . . Reused . | . . . Traps Extracted . | . . . Installed . | . . . Triggered . | . . . Machines | -11 -10 -10 ---------- Run | Scr Mat Min Machines Disabled . | . . . Max in Single Turn . | . . . Machines Sabotaged . | . . . Garrisons Compromised . | . . . Overloaded Fab Kills . | . . . Fab Network Shutdowns . | . . . Hacking | -11 -10 -10 --------- Run | Scr Mat Min Machines Accessed 2 | . 2 . Terminals 1 | . 1 . Fabricators . | . . . Repair Stations . | . . . Recycling Units 1 | . 1 . Scanalyzers . | . . . Garrison Access . | . . . Total Hacks 6 | . 6 . Successful 4 | . 4 . Failed 2 | . 2 . Catastrophic . | . . . Database Lockouts . | . . . Manual . | . . . Terminals 3 | . 3 . Fabricators . | . . . Repair Stations . | . . . Recycling Units 3 | . 3 . Scanalyzers . | . . . Garrison Access . | . . . Terminal Hacks 1 | . 1 . Prototype ID Bank 1 | . 1 . Fabricator Hacks . | . . . Repair Station Hacks . | . . . Recycling Unit Hacks 3 | . 3 . Process 1 | . 1 . Retrieve Matter 1 | . 1 . Retrieve Components 1 | . 1 . Scanalyzer . | . . . Garrison Access Hacks . | . . . Unauthorized Hacks . | . . . Terminals . | . . . Fabricators . | . . . Repair Stations . | . . . Recycling Units . | . . . Scanalyzers . | . . . Garrison Access . | . . . Data Cores Recovered . | . . . Used . | . . . Hacking Detections 1 | . 1 . Full Trace Events . | . . . Feedback Events . | . . . Feedback Blocked . | . . . Robot Schematics Acquired . | . . . Robots Built . | . . . Matter . | . . . Time . | . . . Total Robot Build Rating . | . . . Part Schematics Acquired . | . . . Parts Built . | . . . Matter . | . . . Time . | . . . Total Part Build Rating . | . . . Parts Repaired . | . . . Time . | . . . Parts Recycled . | . . . Recycled Matter 20 | . 20 . Retrieved Matter 20 | . 20 . Retrieved Components . | . . . Parts Scanalyzed . | . . . Part Schematics Acquired . | . . . Parts Damaged . | . . . Bothacking | -11 -10 -10 ------------ Run | Scr Mat Min Used RIF Installer . | . . . Robots Hacked . | . . . Non-combat . | . . . Combat . | . . . Robot Hacks Applied . | . . . Relay Couplers Released . | . . . Robots Rewired . | . . . Allies Hacked . | . . . Hacks Repelled . | . . . Allies | -11 -10 -10 -------- Run | Scr Mat Min Total Allies . | . . . Largest Group . | . . . Highest-Rated Group . | . . . Highest-Rated Ally . | . . . Total Orders . | . . . Ally Attacks . | . . . Total Damage . | . . . Kills . | . . . Allies Corrupted . | . . . Allies Melted . | . . . Intel | -11 -10 -10 ------- Run | Scr Mat Min Robot Analysis Total . | . . . Derelict Logs Recovered . | . . . Drone Launches . | . . . Drone Recoveries . | . . . Exploration | -11 -10 -10 ------------- Run | Scr Mat Min Turns Passed 504 | 83 177 244 Spaces Moved 310 | 57 125 128 Core 39 | 39 . . Treads . | . . . Legs 234 | 18 125 91 Wheels . | . . . Hover 37 | . . 37 Flight . | . . . Fastest Speed 50 | 50 120 90 Average Speed 117 | 124 120 111 Slowest Speed 150 | 150 120 150 Overloaded Moves . | . . . Propulsion Burnouts . | . . . Robots Hopped . | . . . Cave-ins Triggered . | . . . Exploration Rate (%) 17 | 3 26 22 Regions Visited 2 Branch Regions 1 Pre-discovered Areas . | . . . Known Exits Taken . | . . . Unknown Exits Taken 2 | 1 1 . Scrap Searched . | . . . Spaces Dug . | . . . Terrain Destroyed . | . . . Melee . | . . . Projectile . | . . . AOE . | . . . Terrain Rammed . | . . . Walls Destroyed . | . . . Machines Disabled . | . . . Actions | -11 -10 -10 --------- Run | Scr Mat Min Total 399 | 68 143 188 Wait 2 | . . 2 Move 308 | 56 124 128 Hop . | . . . Pick Up 20 | 6 6 8 Fast Attach 3 | 2 1 . Attach 13 | 4 . 9 Detach 1 | . . 1 Swap 3 | . 3 . Drop 9 | . 4 5 Fire 40 | . 5 35 Melee . | . . . Ram . | . . . Kick . | . . . Crush . | . . . Escape Stasis . | . . . Rewire . | . . . Trap . | . . . Miscellaneous . | . . . Route ------- -11/Scrapyard -10/Materials -10/Mines History --------- Turn | Location | Event 22 | -11/Scrapyard | Discovered new exit (range 16) 84 | -11/Scrapyard | Entered Materials 235 | -10/Materials | Discovered new exit (range 16) 261 | -10/Materials | Entered Mines 274 | -10/Mines | Met a Derelict bent on vengeance 312 | -10/Mines | Assembled infested the area 318 | -10/Mines | Build established: Mutant 361 | -10/Mines | Core integrity fell below 50% 417 | -10/Mines | Lost 5 parts (1p1n3w) 434 | -10/Mines | Core integrity fell below 20% 505 | -10/Mines | Destroyed by D-53 Grenadier with Mini Grenade Launcher Last Messages --------------- 00449_ as-99016 destroyed. 00450_ The unstable cave ceiling collapses. 00453_ Acquired Mni. Grenade Launcher. 00456_ The unstable cave ceiling collapses. 00456_ Acquired Seismic Analyzer. 00457_ as-94349 destroyed. 00460_ Acquired Sml. Laser. 00462_ Acquired Cmb. Airjet. 00465_ Acquired Lgt. Ion Engine. 00472_ U-05 Engineer lays Concrete. 00472_ Acquired 12 matter. 00473_ U-05 Engineer lays Concrete. 00474_ U-05 Engineer builds a Wall. 00477_ The unstable cave ceiling collapses. 00478_ Acquired 7 matter. 00479_ U-05 Engineer lays Concrete. 00481_ U-05 Engineer builds a Wall. 00486_ U-05 Engineer lays Concrete. 00488_ U-05 Engineer builds a Wall. 00505_ Particle Cannon destroyed. Map ----- +----------------------------------------------------+ | ?????????????????????????????????#?????? | | ????????????????????????#?#????????????? | | ??????????????????????????????##???????? | | ??????????????????????????????#######??? | | ??????????????????????????????# ##?? | | ??????????????????????????????# ##? | | ??????????????????##########??# ## | | ??????????????????# """ #### | | ??????????????????# """ | | ??????????????#???# """ ###### | | ???????????###????# ##???#### | | ??????????? #???# #?????#### | | ??????????? #???# ###??##??#### | | ???????????# ###?# #????#??????# | | ???????????# #???#############????#???# | | ???????????# #???????## # # ###????#?# | | ???????????# #??###### # ###????# | | ???????????# #?## ## # #???### | | ???????????# ### # # ## ##??# | | ???????????# ## #??# # | | ???????????# ## * #### # | | ?????###??## ### % % # | | ????## ### #### ## ############# | | ????# ######### # #??????? | | ????# ##????## ### ##??#???? | | ????# @ #?????########??#????? | | ????## ## #????????????????????? | | ?????## ##?# #??????????? ??? ???#? | | ??????### ##??? #????#????? ????? ??? | | ????????#####????? ?? ???#???????????? | | ??????????????????? d ???????? ????????? | | ??????????????????? ??????#?????????? | | ???????????????????? ??????????????#? | | ????????????????????? ???????#??????? | | ?????????????????????? ?????????????? | | ???????????????????????# #????????????? | | ????????????????????????%=#????????????? | | ???????????????????????????????????????? | | ???????????????????????????????????????? | | ???????????????????????????????????????? | | ???????????????????????????????????????? | | ???????????????????????????????????????? | | ???????????????????????????????????????? | | ???????????????????????????????????????? | | ???????????????????????????????????????? | | ???????????????????????????????????????? | | ???????????????????????????????????????? | | ???????????????????????????????????????? | | ???????????????????????????????????????? | | ???????????????????????????????????????? | +----------------------------------------------------+ Best States ------------- Heat Dissipation 25 Energy Generation 10 Energy Capacity 250 Matter Stores 300 Matter Capacity 300 Sight Range 16 Terrain Scan Range 14 Terrain Scan Density 60 Evasion (%) 47 Item Schematics ----------------- None Robot Schematics ------------------ None Fabricated ------------ Nothing Alien Tech Used ----------------- None Achievements -------------- None Challenges ------------ None Game ------ Seed MissileMolecularImmobilizer Manual? 0 Play Time 00:15:09 Cumulative 6.7 hours Start 2020.11.07 @ 19:16:32 End 2020.11.07 @ 19:28:00 Sessions 1 Manual Loads 0 Difficulty Rogue Special Mode None Game No. 8 Rogue 8 Adventurer 0 Explorer 0 Win Type - Total 0 Types 0/0/0/0/0/0/0/0/0 Lore% 3 Gallery% 12 Achievement% 3 Wizard Run 0 Options --------- ASCII 0 Keyboard 0 Movement Arrows Keybinds 0 Fullscreen 1 Font 18/SmallcapsGlow Map View 76x50 Tactical HUD 1 Map Filters NONE Filters NONE Steam 1 RUN: a1dc1f1a-9aa9-42c8-8116-4beaa33c8c6e